[Event "Polish University-ch Teams 2024"]
[Site "Lublin"]
[Date "2024.02.25"]
[Round "9.2"]
[White "Garbowski, Jakub"]
[Black "Kowalski, Igor"]
[Result "0-1"]
[ECO "B08"]
[WhiteElo "2119"]
[BlackElo "2372"]
[Annotator "TA"]
[PlyCount "130"]
[EventDate "2024.02.22"]
[EventType "team-tourn"]
[EventCountry "POL"]
[SourceTitle "playchess.com"]
[Source "ChessBase"]
[SourceQuality "1"]
[TimeControl "900+5"]

{[%evp 23,130,-15,0,0,31,25,20,19,20,14,40,7,15,23,18,13,28,21,34,26,20,29,29,25,27,12,89,39,35,10,9,0,0,0,3,-12,-12,-12,-12,-16,-18,-18,-7,-17,-18,-20,-19,-19,-15,-65,-75,-79,-51,-90,-83,-97,-59,-66,-27,-57,-56,-68,-23,-152,-40,-124,-130,-117,-126,-182,-185,-286,-219,-254,-226,-275,-264,-330,-295,-444,-458,-597,-587,-669,-632,-445,-413,-541,-411,-398,-404,-460,-425,-501,-455,-578,-574,-750,-756,-629,-465,-569,-562,-829,-825,-815,-796,-6019,-6079]} 1. e4 {[%emt 0:00:02]} g6 {[%emt 0:00:01]} 2. d4 {[%emt 0:00:03]} Bg7 {[%emt 0:00:01]} 3. Nc3 {[%emt 0:00:28]} d6 {[%emt 0:00:01]} 4. Be3 {[%emt 0:00:17]} a6 {[%emt 0:00:02]} 5. a4 {[%emt 0:00:09]} Nc6 {[%emt 0:00:54]} 6. h3 {[%emt 0:00:50]} e5 {[%emt 0:00:08]} 7. Nf3 {[%emt 0:00:51]} exd4 {[%emt 0:00:29]} 8. Nxd4 {[%emt 0:00:06]} Nf6 {[%emt 0:00:03]} 9. Be2 {[%emt 0:06:44]} O-O {[%emt 0:00:06]} 10. O-O {[%emt 0:00:02]} Re8 {[%emt 0:00:04] B08: Pirc Defence: Classical System.} 11. Bf3 {[%emt 0:00:45]} Ne5 {[%emt 0:00:11]} 12. Be2 {[%emt 0:00:01]} Nc6 $146 {[%emt 0:00:29]} ({Predecessor:} 12... Ned7 13. Bd3 Nc5 14. Qf3 c6 15. Nb3 Nxd3 16. cxd3 Nd7 17. a5 c5 18. Qd1 Nf6 19. Na4 Be6 {1-0 Erenburg,S (2585)-Grischuk,A (2709) Wch Blitz 1st 2006 (3)}) 13. Bf3 {[%emt 0:00:03]} Nd7 {[%emt 0:00:01]} 14. Qd2 {[%emt 0:00:25]} Nxd4 {[%emt 0:05:44]} 15. Bxd4 {[%emt 0:00:05]} Bxd4 {[%emt 0:00:04]} 16. Qxd4 {[%emt 0:00:03]} Qf6 {[%emt 0:00:03]} 17. Rad1 {[%emt 0:01:29]} Qxd4 {[%emt 0:00:33]} 18. Rxd4 {[%emt 0:00:02]} Nf6 {[%emt 0:00:06]} 19. Rfd1 {[%emt 0:00:42]} Re7 {[%emt 0:00:54]} 20. a5 {[%emt 0:00:22]} Bd7 {[%emt 0:00:22]} 21. Rb4 {[%emt 0:00:59]} Bc6 {[%emt 0:00:05]} 22. Nd5 {[%emt 0:00:01]} Bxd5 {[%emt 0:00:17]} 23. exd5 {[%emt 0:00:02]} Rb8 {[%emt 0:00:01]} 24. Kf1 {[%emt 0:00:22]} b6 {[%emt 0:03:45]} (24... Nd7 $11) 25. axb6 {[%emt 0:00:35]} (25. Ra1 $16) 25... Rxb6 {[%emt 0:00:02]} 26. Rdd4 {[%emt 0:00:02]} Nd7 {[%emt 0:00:14]} 27. Be2 {[%emt 0:00:18]} a5 {[%emt 0:00:02]} 28. Rxb6 {[%emt 0:00:12]} Nxb6 {[%emt 0:00:05]} 29. b3 {[%emt 0:00:30]} Re5 {[%emt 0:00:08]} 30. Bf3 {[%emt 0:00:34]} Kg7 {[%emt 0:00:20]} 31. Rd3 {[%emt 0:00:20]} a4 {[%emt 0:01:24]} 32. bxa4 {[%emt 0:00:02]} Nxa4 {[%emt 0:00:01]} 33. Ra3 {[%emt 0:00:06]} Nb6 {[%emt 0:00:06]} 34. Ra7 {[%emt 0:00:13]} Re7 {[%emt 0:00:02]} 35. g3 {[%emt 0:00:07]} Kf6 {[%emt 0:00:02]} 36. Kg2 {[%emt 0:00:04]} (36. Ra3 $11) 36... Ke5 $15 {[%emt 0:00:05]} 37. Ra5 {[%emt 0:00:04]} Kd4 {[%emt 0:00:04]} 38. h4 {[%emt 0:00:07]} Kc3 {[%emt 0:00:22]} 39. Ra2 {[%emt 0:00:07]} Nc4 {[%emt 0:00:04]} 40. g4 {[%emt 0:00:04]} h6 {[%emt 0:00:13]} 41. h5 {[%emt 0:00:04]} Ne5 {[%emt 0:00:21]} 42. Be2 {[%emt 0:00:05]} f5 {[%emt 0:00:10]} 43. hxg6 {[%emt 0:00:05]} (43. f4 $11 {remains equal.} Nd7 44. Bd3) 43... Nxg6 {[%emt 0:00:00]} (43... fxg4 $17 {[%cal Oe7g7] And now ...Rg7! would win.} 44. Bd3 Nxd3 45. cxd3 Rg7 (45... Kxd3 46. f4 $11)) 44. Bf3 {[%emt 0:00:07]} ({White should play} 44. gxf5 $15 Nf4+ (44... Rxe2 $2 {loses.} 45. fxg6 Re8 46. Ra4 $18) 45. Kf1) 44... fxg4 $17 {[%emt 0:00:06]} 45. Bxg4 {[%emt 0:00:02]} Nf4+ {[%emt 0:00:02]} 46. Kf3 {[%emt 0:00:02]} (46. Kf1 $17) 46... Nxd5 $19 {[%emt 0:00:01]} 47. Ra5 {[%emt 0:00:05]} (47. Bf5 {keeps fighting.}) 47... Re5 {[%emt 0:00:09]} 48. Ra8 {[%emt 0:00:08]} h5 {[%emt 0:00:04]} ({Stronger than} 48... Kxc2 49. Rh8 $11) 49. Bd7 {[%emt 0:00:06]} Kxc2 {[%emt 0:00:02]} 50. Rc8 {[%emt 0:00:04]} Kd3 {[%emt 0:00:23]} 51. Bb5+ {[%emt 0:00:04]} (51. Ra8 $142) 51... Kd4 $19 {[%emt 0:00:02]} 52. Rh8 {[%emt 0:00:06]} Rf5+ {[%emt 0:00:05]} 53. Kg3 {[%emt 0:00:04]} Nf6 {[%emt 0:00:05]} 54. Bc6 {[%emt 0:00:05]} d5 {[%emt 0:00:03]} 55. f3 {[%emt 0:00:03]} Kc5 {[%emt 0:00:02]} 56. Bb7 {[%emt 0:00:06]} d4 {[%emt 0:00:04]} 57. Rd8 {[%emt 0:00:02]} Nd5 {[%emt 0:00:02]} 58. Kf2 {[%emt 0:00:05]} c6 {[%emt 0:00:10]} 59. Rc8 {[%emt 0:00:10]} Rf6 {[%emt 0:00:31]} 60. Rh8 {[%emt 0:00:04]} Nf4 {[%emt 0:00:00]} 61. Ba6 {[%emt 0:00:08]} Rd6 {[%emt 0:00:00]} 62. Ke1 {[%emt 0:00:05]} Re6+ {[%emt 0:00:00]} 63. Kd2 {[%emt 0:00:02]} Re3 {[%emt 0:00:00]} 64. Rf8 {[%emt 0:00:08]} Rxf3 {[%emt 0:00:01]} 65. Be2 {[%emt 0:00:03]} Rf2 {[%emt 0:00:01]} 0-1

[Event "Polish University-ch Teams 2024"]
[Site "Lublin"]
[Date "2024.02.25"]
[Round "9.3"]
[White "Molenda, Marcin"]
[Black "Walaszczyk, Aleksander"]
[Result "1-0"]
[ECO "D97"]
[WhiteElo "2377"]
[BlackElo "1782"]
[Annotator "TA"]
[PlyCount "103"]
[EventDate "2024.02.22"]
[EventType "team-tourn"]
[EventCountry "POL"]
[SourceTitle "playchess.com"]
[Source "ChessBase"]
[SourceQuality "1"]
[TimeControl "900+5"]

{[%evp 14,103,30,22,21,19,43,43,34,52,27,39,42,38,51,52,45,14,28,25,18,-215,-43,-34,39,32,54,41,102,98,102,109,107,96,94,102,95,102,102,94,98,95,99,95,95,96,153,135,135,135,135,106,106,106,135,111,114,81,139,139,289,295,389,370,422,415,445,452,379,251,223,198,191,0,115,145,397,390,824,782,737,689,1318,1315,1386,1353,1386,1360,1295,1241,1127,1127]} 1. d4 {[%emt 0:00:01]} Nf6 {[%emt 0:00:02]} 2. c4 {[%emt 0:00:01]} g6 {[%emt 0:00:02]} 3. Nc3 {[%emt 0:00:11]} d5 {[%emt 0:00:01]} 4. Nf3 {[%emt 0:00:03]} Bg7 {[%emt 0:00:01]} 5. Qb3 {[%emt 0:00:01]} dxc4 {[%emt 0:00:03]} 6. Qxc4 {[%emt 0:00:01]} O-O {[%emt 0:00:02]} 7. e4 {[%emt 0:00:01]} Nc6 {[%emt 0:00:01]} 8. Be2 {[%emt 0:00:16]} e5 {[%emt 0:00:01] Gegen Bf4 gerichtet.} 9. d5 {[%emt 0:00:06]} (9. Nxe5 $2 Nxd4 10. O-O Nxe4 11. Nxe4 Be6 $17 (11... Bxe5 $2 12. Bg5 $17)) 9... Nd4 {[%emt 0:00:01]} 10. Nxd4 {[%emt 0:00:40]} (10. Nxe5 $2 Nc2+ 11. Kd1 Nxa1 $19) 10... exd4 {[%emt 0:00:02] Weiß steht etwas besser.} 11. Qxd4 {[%emt 0:00:10]} c6 {[%emt 0:00:02][%cal Of6d5]} 12. Qc4 {[%emt 0:00:56]} b5 {[%emt 0:00:01]} 13. Qxc6 {[%emt 0:00:53]} Bd7 {[%emt 0:00:01]} 14. Qd6 {[%emt 0:00:30][%cal Of2f3]} Re8 {[%emt 0:00:01]} 15. e5 {[%emt 0:01:18]} (15. Bxb5 Nxe4 16. Qxd7 Nf6+ $15 (16... Nxc3+ $2 17. Qxe8+ Qxe8+ 18. Bxe8 $18) (16... Bxc3+ 17. bxc3 Nf6+ 18. Qxe8+ Nxe8 19. Bc6 $16) (16... Nxc3+ $2 17. Qxe8+ Qxe8+ 18. Bxe8 $18) (16... Bxc3+ 17. bxc3 Nf6+ 18. Qxe8+ Nxe8 19. Bc6 $14)) 15... Ng4 {[%emt 0:00:01]} 16. e6 {[%emt 0:00:57]} (16. Bxb5 $2 Bxb5 (16... Nxe5 17. O-O $11) (16... Rxe5+ 17. Be2 $17) (16... Bxe5 17. Qxd7 Bxc3+ 18. Kd1 $15) 17. Qxd8 Raxd8 18. Nxb5 Rxd5 $17 (18... Nxe5 19. O-O $16) (18... Rxe5+ 19. Be3 $17)) 16... fxe6 $1 {[%emt 0:00:02]} 17. Qg3 {[%emt 0:00:52]} (17. h3 $11 Ne5 18. dxe6 (18. Bxb5 Bxb5 19. Qxd8 Nd3+ 20. Kf1 Raxd8 $17) (18. Nxb5 exd5 19. Be3 Nf7 $15) 18... Rxe6 19. Qd1) 17... exd5 $2 {[%emt 0:01:35]} (17... b4 $1 $19 {[%cal Rb4c3]} 18. O-O bxc3 19. bxc3 Nf6 20. dxe6 Bxe6 (20... Rxe6 21. Bc4 $15)) 18. O-O $15 {[%emt 0:00:40]} Nf6 {[%emt 0:00:47]} (18... Bxc3 $15 19. Bxg4 Be5) 19. Bf3 $36 {[%emt 0:03:01][%cal Oc1g5][%mdl 2048] Droht stark Bg5! Weiss kämpft um Vorteil.} Bc6 {[%emt 0:03:30]} 20. Bg5 {[%emt 0:00:11] Droht Rad1 und aus.} b4 {[%emt 0:00:03] [#]} ({Vorzuziehen ist} 20... Rc8 $14) 21. Nxd5 $1 $16 {[%emt 0:01:12][%mdl 512] Weiß steht aktiver.} Bxd5 {[%emt 0:00:06]} 22. Rad1 {[%emt 0:00:01] Und jetzt Bxd5+ wäre schön.} Qb8 {[%emt 0:03:23] Zielt auf ...Qxg3 ab.} 23. Bxf6 {[%emt 0:00:38]} Bxf3 {[%emt 0:01:14]} 24. Qxf3 {[%emt 0:00:02] Beabsichtigt Qb3+ und Matt.} Bxf6 {[%emt 0:00:17]} 25. Qxf6 {[%emt 0:00:02] Weiss droht Rd7 und Matt.} Qe5 {[%emt 0:00:14]} 26. Qf3 {[%emt 0:01:02]} Qe6 {[%emt 0:00:05]} 27. a3 {[%emt 0:00:35]} (27. Qf4 {mit weiteren Verwicklungen.} Qxa2 28. Rd7 Rf8 29. Qxb4 Rab8 30. Qh4) 27... bxa3 {[%emt 0:00:03]} 28. bxa3 {[%emt 0:00:01]} Rab8 {[%emt 0:00:18]} 29. h3 {[%emt 0:00:27]} a5 {[%emt 0:00:47]} (29... Rf8 $142 30. Qc3 Rbc8) 30. Rd3 {[%emt 0:00:08]} Qe4 {[%emt 0:00:43]} 31. Qg3 {[%emt 0:00:24]} Qe5 {[%emt 0:00:13]} 32. Rc1 {[%emt 0:00:35][%cal Bf1c1,Bc1c6,Bc6a6][%mdl 32] Schwarz muss nun Qxe5 beachten.} Qxg3 {[%emt 0:00:52]} 33. Rxg3 {[%emt 0:00:01][%mdl 4096] Endspiel. KRR-KRR} Re5 {[%emt 0:00:27] Es drohte Rg5} 34. Rf3 {[%emt 0:00:11]} Rb7 {[%emt 0:00:13]} 35. Rc6 {[%emt 0:00:07]} Kg7 {[%emt 0:00:04]} (35... Reb5 $142) 36. Ra6 {[%emt 0:01:50]} h5 {[%emt 0:00:51]} (36... Rc5 $16 37. Rf4 Rbc7) 37. Rg3 $18 {[%emt 0:00:00]} g5 {[%emt 0:00:38] [#]} 38. f4 $1 {[%emt 0:00:00][%cal Bf2f4,Bf4g5,Bg5g6][%mdl 32]} h4 {[%emt 0:00:03]} 39. Rxg5+ {[%emt 0:00:00]} Rxg5 {[%emt 0:00:01]} 40. fxg5 {[%emt 0:00:00] KR-KR} Rb5 {[%emt 0:00:01]} 41. g6 {[%emt 0:00:00]} Rf5 {[%emt 0:00:07]} 42. Kh2 {[%emt 0:00:00]} Kh6 {[%emt 0:00:10]} 43. Kg1 {[%emt 0:00:00]} (43. a4 $18) 43... Kg7 $1 $16 {[%emt 0:01:31]} 44. Rc6 {[%emt 0:00:18] Rc4 wäre nun fies.} Rd5 $2 {[%emt 0:00:00][%mdl 8192] [#]} (44... Rf4 $16 {ist eine bessere Verteidigung.} 45. Rc5 Ra4) 45. Rc4 $1 $18 {[%emt 0:00:02]} Rd1+ $2 {[%emt 0:00:00]} (45... Rh5 46. Rg4 a4 47. Rxa4 Kxg6) 46. Kh2 {[%emt 0:00:01] Weiß steht klar auf Gewinn.} Rd3 {[%emt 0:00:00]} 47. a4 {[%emt 0:00:08]} ({Weniger gut wäre} 47. Rxh4 Rxa3 48. Rg4 Rd3 $18) 47... Ra3 {[%emt 0:00:00]} 48. Rxh4 {[%emt 0:00:03]} Kxg6 {[%emt 0:00:00]} 49. Rc4 {[%emt 0:00:06]} Kh6 {[%emt 0:00:00]} 50. h4 {[%emt 0:00:03]} Kg6 {[%emt 0:00:00]} 51. g3 {[%emt 0:00:03]} Rb3 {[%emt 0:00:00]} 52. Rc5 {[%emt 0:00:02] Gewichteter Fehlerwert: Weiß=0.26 (präzise) /Schwarz=0.31.  Verlustzug:     	Weiß=1     	Schwarz=1     Gewinn verpasst:   	---       	Schwarz=1     Fehler:       	Weiß=1     	Schwarz=6     Ungenau:       	Weiß=2     	Schwarz=1     OK:         	Weiß=15    	Schwarz=10    Bester:       	Weiß=2     	Schwarz=2     Stark:        	Weiß=2     	Schwarz=2} 1-0

[Event "Polish University-ch Teams 2024"]
[Site "Lublin"]
[Date "2024.02.25"]
[Round "9.4"]
[White "Kroliczek, Gabriela"]
[Black "Chylewski, Patryk"]
[Result "0-1"]
[ECO "B23"]
[WhiteElo "1928"]
[BlackElo "2285"]
[Annotator "TA"]
[PlyCount "66"]
[EventDate "2024.02.22"]
[EventType "team-tourn"]
[EventCountry "POL"]
[SourceTitle "playchess.com"]
[Source "ChessBase"]
[SourceQuality "1"]
[TimeControl "900+5"]

{[%evp 9,66,0,0,-31,-19,-84,-31,-45,0,-14,-21,-17,-18,-27,88,71,79,-28,12,-17,0,-143,-143,-159,-175,-193,-147,-312,-310,-324,-308,-277,-284,-287,-227,-256,-212,-223,-141,-512,-421,-426,-414,-642,-619,-596,-537,-1412,-1316,-1581,-1422,-29978,-29979,-29979,-29980,-29980,-1920,-29994,-29995]} 1. e4 {[%emt 0:00:02]} c5 {[%emt 0:00:10]} 2. Nc3 {[%emt 0:00:02]} e6 {[%emt 0:00:02]} 3. d4 {[%emt 0:00:16]} cxd4 {[%emt 0:00:02]} 4. Qxd4 {[%emt 0:00:02]} Nc6 {[%emt 0:00:04]} 5. Qd2 {[%emt 0:00:02]} a6 {[%emt 0:00:25]} 6. f3 {[%emt 0:00:31]} Nf6 {[%emt 0:00:19]} 7. b3 {[%emt 0:01:06]} (7. Qf2 $11) 7... Bb4 {[%emt 0:00:19]} (7... d5 $17 8. exd5 exd5 (8... Nxd5 9. Bb2 $11)) 8. Bb2 $15 {[%emt 0:00:03] Black is slightly better.} Qc7 {[%emt 0:00:31]} 9. Nge2 {[%emt 0:00:51]} O-O {[%emt 0:00:23]} 10. a3 {[%emt 0:01:30]} Be7 {[%emt 0:00:06]} 11. O-O-O {[%emt 0:00:08]} d6 {[%emt 0:00:38]} (11... b5 $11) 12. g4 $16 {[%emt 0:00:29]} b5 {[%emt 0:00:08]} 13. Na2 {[%emt 0:01:00]} ({White should play} 13. g5 $16 {Nxb5 is the strong threat.} Nd7 14. Kb1) 13... Bb7 {[%emt 0:00:32]} 14. Kb1 {[%emt 0:00:12]} Rfd8 {[%emt 0:00:17]} 15. Ng3 {[%emt 0:01:15]} (15. g5 $1 $11 {keeps the balance.} Ne8 16. Qe3) 15... d5 $17 {[%emt 0:00:08]} 16. exd5 {[%emt 0:03:32]} Nxd5 {[%emt 0:00:03] White must now prevent ...b4.} 17. Bd3 {[%emt 0:00:02]} Nf4 {[%emt 0:00:13]} (17... b4 $19 18. Bxg7 Kxg7 19. Nh5+ Kf8 20. Qh6+ Ke8) 18. Nh5 $2 {[%emt 0:01:31]} (18. Qe3 $17) 18... Nxd3 $19 {[%emt 0:01:05]} 19. cxd3 {[%emt 0:00:03]} e5 {[%emt 0:00:06][%cal Be6e5,Be5e4][%mdl 32]} 20. f4 {[%emt 0:01:17]} Nd4 {[%emt 0:00:15]} 21. Rhf1 {[%emt 0:00:32]} e4 {[%emt 0:00:16]} 22. Nc1 {[%emt 0:01:05]} Bf8 {[%emt 0:01:04] [#] aiming for ...Rac8.} 23. Qf2 {[%emt 0:00:55]} Bc5 {[%emt 0:00:44] ...Bb6 would now be deadly.} 24. Qg3 $2 {[%emt 0:00:27][%mdl 8192] This costs White the game.} (24. Nxg7 $17 e3 (24... Kxg7 25. dxe4 b4 26. axb4 $14) 25. Qxe3) 24... b4 {[%emt 0:00:39]} 25. a4 {[%emt 0:00:06]} Rac8 {[%emt 0:00:26] Strongly threatening ...Ba7.} 26. dxe4 {[%emt 0:00:05]} (26. f5 $142 Bd6 27. Qf2) 26... Bxe4+ {[%emt 0:00:02]} 27. Ka2 {[%emt 0:00:01]} Qc6 {[%emt 0:00:15]} 28. Rfe1 {[%emt 0:00:11]} Bc2 {[%emt 0:00:13][%cal Od4b3] ( -> ...Nxb3!). A strong pair of Bishops.} 29. Rd2 {[%emt 0:00:03] [#]} Bxb3+ $1 {[%emt 0:00:32][%mdl 512]} 30. Nxb3 {[%emt 0:00:03]} (30. Kb1 Bc2+) 30... Qxa4+ {[%emt 0:00:02]} 31. Kb1 {[%emt 0:00:01]} Nxb3 {[%emt 0:00:03]} 32. Rxd8+ {[%emt 0:00:08]} Rxd8 {[%emt 0:00:02]} 33. Qf2 {[%emt 0:00:13]} Bxf2 {[%emt 0:00:04] Weighted Error Value: White=1.03/Black=0.32.  Loses game:     	White=2     	---        Mistake:       	White=4     	Black=3      Inaccurate:     	White=1     	Black=3      OK:         	White=3     	Black=6      Best:        	White=3     	Black=3} 0-1

[Event "Polish University-ch Teams 2024"]
[Site "Lublin"]
[Date "2024.02.25"]
[Round "9.5"]
[White "Hrymowicz, Artur"]
[Black "Lendzion, Kamil"]
[Result "1-0"]
[ECO "B80"]
[WhiteElo "2131"]
[BlackElo "1846"]
[Annotator "NA"]
[PlyCount "63"]
[EventDate "2024.02.22"]
[EventType "team-tourn"]
[EventCountry "POL"]
[SourceTitle "playchess.com"]
[Source "ChessBase"]
[SourceQuality "1"]
[TimeControl "900+5"]

1. e4 {[%emt 0:00:01]} c5 {[%emt 0:00:01]} 2. Nf3 {[%emt 0:00:04]} d6 {[%emt 0:00:00]} 3. d4 {[%emt 0:00:02]} cxd4 {[%emt 0:00:02]} 4. Nxd4 {[%emt 0:00:01]} Nf6 {[%emt 0:00:01]} 5. Nc3 {[%emt 0:00:12]} a6 {[%emt 0:00:01]} 6. Be3 {[%emt 0:00:05]} e6 {[%emt 0:00:27]} 7. f3 {[%emt 0:01:50]} Be7 {[%emt 0:00:03]} 8. Qd2 {[%emt 0:00:06]} Nc6 {[%emt 0:00:16]} 9. O-O-O {[%emt 0:00:04]} Bd7 {[%emt 0:01:00]} 10. g4 {[%emt 0:00:21]} h6 {[%emt 0:00:01]} 11. h4 {[%emt 0:00:20]} d5 {[%emt 0:01:31]} 12. exd5 {[%emt 0:00:43]} exd5 {[%emt 0:00:58]} 13. Bd3 {[%emt 0:05:24]} Qa5 {[%emt 0:07:56]} 14. g5 {[%emt 0:00:31]} Nh5 {[%emt 0:00:28]} 15. Nb3 {[%emt 0:01:44]} Qb4 {[%emt 0:01:59]} 16. Nxd5 {[%emt 0:00:37]} Qxd2+ {[%emt 0:00:05]} 17. Rxd2 {[%emt 0:00:07]} O-O-O {[%emt 0:00:49]} 18. Nxe7+ {[%emt 0:00:40]} Nxe7 {[%emt 0:00:02]} 19. gxh6 {[%emt 0:00:33]} gxh6 {[%emt 0:00:03]} 20. Re1 {[%emt 0:01:10]} Nd5 {[%emt 0:01:02]} 21. Bf2 {[%emt 0:00:39]} Rhe8 {[%emt 0:00:00]} 22. Rxe8 {[%emt 0:00:19]} Bxe8 {[%emt 0:00:01]} 23. Be4 {[%emt 0:00:04]} Nhf6 {[%emt 0:00:06]} 24. Nc5 {[%emt 0:00:58]} Bc6 {[%emt 0:00:01]} 25. Bf5+ {[%emt 0:00:02]} Kc7 {[%emt 0:00:17]} 26. c4 {[%emt 0:00:13]} Ne7 {[%emt 0:00:00]} 27. Bg3+ {[%emt 0:00:09]} Kb6 {[%emt 0:00:00]} 28. Rxd8 {[%emt 0:00:02]} Nxf5 {[%emt 0:00:01]} 29. Bf2 {[%emt 0:00:05]} Kc7 {[%emt 0:00:04]} 30. Rf8 {[%emt 0:00:01]} Nd6 {[%emt 0:00:08]} 31. Bg3 {[%emt 0:00:05]} Nh5 {[%emt 0:00:17]} 32. Rxf7+ {[%emt 0:00:07]} 1-0

[Event "Polish University-ch Teams 2024"]
[Site "Lublin"]
[Date "2024.02.25"]
[Round "9.7"]
[White "Dzida, Kamil"]
[Black "Baum, Jonasz"]
[Result "1-0"]
[ECO "B51"]
[WhiteElo "2403"]
[BlackElo "2400"]
[Annotator "TA"]
[PlyCount "135"]
[EventDate "2024.02.22"]
[EventType "team-tourn"]
[EventCountry "POL"]
[SourceTitle "playchess.com"]
[Source "ChessBase"]
[SourceQuality "1"]
[TimeControl "900+5"]

{[%evp 31,135,32,3,0,4,18,0,2,62,52,179,173,124,138,217,220,171,89,84,91,87,60,77,22,29,31,21,35,32,13,31,16,32,0,0,-18,-20,-10,0,0,0,-8,-8,-208,-208,-208,-208,-242,-20,-16,-16,-16,0,-16,-12,-12,-12,-20,-20,-32,-12,-16,-8,-8,-8,-8,-8,-12,-12,-12,-12,-12,0,-16,1410,1403,29973,29974,29972,29975,29979,29980,29980,29981,29981,29981,29983,29984,29984,29981,29981,29982,29982,29983,29983,29984,29984,29985,29985,29986,29986,29985,29985,8,29984,455]} 1. e4 {[%emt 0:00:01]} c5 {[%emt 0:00:00]} 2. Nf3 {[%emt 0:00:02]} d6 {[%emt 0:00:01]} 3. Bb5+ {[%emt 0:00:08]} Nd7 {[%emt 0:00:01]} 4. a4 {[%emt 0:00:07]} Ngf6 {[%emt 0:00:09]} 5. Nc3 {[%emt 0:00:02]} a6 {[%emt 0:00:02]} 6. Be2 {[%emt 0:00:02] B51: Sicilian: Moscow Variation (3 Bb5+) without 3...Bd7.} g6 {[%emt 0:00:06]} 7. O-O {[%emt 0:00:18]} Bg7 {[%emt 0:00:01]} 8. d3 {[%emt 0:00:01]} O-O {[%emt 0:00:05]} 9. Qd2 {[%emt 0:00:01]} b6 {[%emt 0:00:28]} 10. Qf4 {[%emt 0:00:06]} Bb7 {[%emt 0:00:18]} 11. Qh4 {[%emt 0:00:07]} Ne5 $146 {[%emt 0:03:15]} ({Predecessor:} 11... h5 12. Bg5 Bc6 13. Nd2 b5 14. f4 c4 15. f5 b4 16. Nd1 cxd3 17. cxd3 Qb6+ {0-1 Yang,K (2481)-Faizrakhmanov,R (2480) Titled Tuesday intern op 07th Dec blitz 2021 (4)}) 12. Nxe5 {[%emt 0:00:32]} dxe5 {[%emt 0:00:01]} 13. f4 {[%emt 0:03:02]} exf4 {[%emt 0:00:06]} 14. Bxf4 {[%emt 0:00:01]} Qd7 {[%emt 0:01:45]} 15. Kh1 {[%emt 0:00:23]} b5 {[%emt 0:00:46]} 16. Be3 {[%emt 0:01:08]} b4 {[%emt 0:00:26]} 17. Nb1 {[%emt 0:00:05]} c4 {[%emt 0:00:02]} 18. Nd2 {[%emt 0:00:15]} cxd3 $1 {[%emt 0:00:15]} 19. cxd3 {[%emt 0:00:01]} Ne8 {[%emt 0:03:30]} (19... Rac8 $11) 20. Nc4 $14 {[%emt 0:00:17]} Nd6 {[%emt 0:00:01]} (20... Rb8 $14) 21. Nb6 $18 {[%emt 0:01:16]} Qe6 {[%emt 0:00:01]} 22. Nxa8 {[%emt 0:00:12]} Rxa8 {[%emt 0:00:28]} (22... Bxa8 $16 23. Bh6 Bxh6 24. Qxh6 Qe5) 23. Qf2 $18 {[%emt 0:01:32]} Bxb2 {[%emt 0:01:39] [#]} 24. Bg4 {[%emt 0:00:01]} (24. Rab1 $1 $18 {[%mdl 512]} Bc3 25. Bd1) 24... Qf6 $16 {[%emt 0:01:07]} 25. Rab1 {[%emt 0:00:28]} Qxf2 {[%emt 0:00:02]} 26. Rxf2 {[%emt 0:01:44]} Bc3 {[%emt 0:00:01]} 27. Rc2 {[%emt 0:02:36]} (27. e5 $1 $16 {[%cal Re5d6]} Nf5 28. Bd2 (28. Bxf5 gxf5 29. Rxf5 Rc8 $11) 28... Bxd2 (28... Bxe5 29. Bxf5 gxf5 30. Rxf5 $16) 29. Rxd2) 27... Bc6 $11 {[%emt 0:00:00]} 28. Rxb4 {[%emt 0:00:47]} Bxb4 {[%emt 0:00:01]} 29. Rxc6 {[%emt 0:00:01]} a5 {[%emt 0:00:01]} 30. Kg1 {[%emt 0:00:16]} h5 {[%emt 0:00:25]} 31. Bh3 {[%emt 0:00:40]} e6 {[%emt 0:00:46]} 32. Bf4 {[%emt 0:00:12]} Rc8 {[%emt 0:00:20]} 33. Rxd6 {[%emt 0:00:40]} Bxd6 {[%emt 0:00:01]} 34. Bxd6 {[%emt 0:00:01]} Rd8 {[%emt 0:00:22]} 35. e5 {[%emt 0:00:05]} Rc8 {[%emt 0:00:08]} 36. g3 {[%emt 0:00:04]} Rc1+ {[%emt 0:00:22]} 37. Bf1 $2 {[%emt 0:00:06]} (37. Kf2 $11) 37... Ra1 $19 {[%emt 0:00:01]} 38. Kf2 {[%emt 0:00:13]} Rxa4 {[%emt 0:00:02]} 39. Ke3 {[%emt 0:00:01]} h4 $2 {[%emt 0:00:26]} (39... Ra1 $19 40. Bg2 a4) 40. d4 $1 $11 {[%emt 0:00:12]} Ra2 {[%emt 0:00:14]} 41. gxh4 {[%emt 0:00:17]} Rxh2 {[%emt 0:00:01]} 42. Bb5 {[%emt 0:00:21]} Rh3+ {[%emt 0:00:06]} 43. Kd2 {[%emt 0:00:07]} Rxh4 {[%emt 0:00:00]} 44. Ke3 {[%emt 0:00:05]} Rh3+ {[%emt 0:00:02]} 45. Ke4 {[%emt 0:00:02]} Rc3 {[%emt 0:00:11]} 46. d5 {[%emt 0:00:08]} exd5+ {[%emt 0:00:12]} 47. Kxd5 {[%emt 0:00:01]} Rc1 {[%emt 0:00:14]} 48. Bd7 {[%emt 0:00:07]} Kg7 {[%emt 0:00:08]} 49. Be7 {[%emt 0:00:03]} Rd1+ {[%emt 0:00:02]} 50. Kc6 {[%emt 0:00:00]} a4 {[%emt 0:00:02]} 51. Kc7 {[%emt 0:00:03]} Ra1 {[%emt 0:00:13]} 52. Kd8 {[%emt 0:00:01]} a3 $2 {[%emt 0:00:03][%mdl 8192]} (52... g5 $11 53. Bd6 Kh6) 53. Bf6+ $18 {[%emt 0:00:01]} Kh6 {[%emt 0:00:22]} 54. e6 {[%emt 0:00:01]} fxe6 {[%emt 0:00:06]} 55. Bxa1 {[%emt 0:00:01]} g5 {[%emt 0:00:07]} 56. Bxe6 {[%emt 0:00:02]} Kh5 {[%emt 0:00:00]} 57. Ke7 {[%emt 0:00:02]} g4 {[%emt 0:00:01]} 58. Kf6 {[%emt 0:00:27]} Kh4 {[%emt 0:00:09]} 59. Kf5 {[%emt 0:00:06]} g3 {[%emt 0:00:02]} 60. Bf6+ {[%emt 0:00:05]} Kh3 {[%emt 0:00:01]} 61. Kf4+ {[%emt 0:00:01]} Kh2 {[%emt 0:00:01]} 62. Be5 {[%emt 0:00:21]} g2 {[%emt 0:00:01]} 63. Ke3+ {[%emt 0:00:03]} Kg1 {[%emt 0:00:17]} 64. Ke2 {[%emt 0:00:01]} Kh1 {[%emt 0:00:03]} 65. Bd5 {[%emt 0:00:01]} Kg1 {[%emt 0:00:09]} 66. Bd6 {[%emt 0:00:04]} a2 {[%emt 0:00:07]} 67. Bxa2 {[%emt 0:00:02]} Kh1 {[%emt 0:00:01]} 68. Bd5 {[%emt 0:00:01]} 1-0